[Event "Titled Tuesday Blitz June 13 Early 2023"]
[White "Schnaider, Ilan"]
[Black "Khamdamova, Afruza"]
[WhiteFideId "169013"]
[BlackFideId "14210444"]
[WhiteElo "2224"]
[BlackElo "2312"]
[Result "0-1"]
[Round "7"]
[TimeControl "180+2"]
[Date "2023.06.13"]
[WhiteClock "0:00:00"]
[BlackClock "0:00:11"]
[Board "97"]

1. e4 {[%clk 0:03:00]}  e5 {[%clk 0:02:31]} 2. Nf3 {[%clk 0:03:00]}  Nf6 {[%clk 0:01:21]} 3. d4 {[%clk 0:03:00]}  Nxe4 {[%clk 0:01:20]} 4. Bd3 {[%clk 0:03:00]}  d5 {[%clk 0:01:20]} 5. Nxe5 {[%clk 0:02:59]}  Nd7 {[%clk 0:01:21]} 6. Nc3 {[%clk 0:02:59]}  Nxe5 {[%clk 0:01:21]} 7. dxe5 {[%clk 0:02:59]}  Nxc3 {[%clk 0:01:21]} 8. bxc3 {[%clk 0:03:00]}  Bc5 {[%clk 0:01:21]} 9. O-O {[%clk 0:03:00]}  O-O {[%clk 0:01:19]} 10. Kh1 {[%clk 0:03:00]}  Qh4 {[%clk 0:01:19]} 11. f4 {[%clk 0:02:56]}  Bg4 {[%clk 0:01:19]} 12. Be2 {[%clk 0:02:53]}  Bxe2 {[%clk 0:01:16]} 13. Qxe2 {[%clk 0:02:54]}  f5 {[%clk 0:01:12]} 14. Qb5 {[%clk 0:02:47]}  b6 {[%clk 0:01:12]} 15. Bd2 {[%clk 0:02:42]}  Rad8 {[%clk 0:01:07]} 16. Rf3 {[%clk 0:02:40]}  Qe7 {[%clk 0:01:07]} 17. Raf1 {[%clk 0:02:36]}  Qd7 {[%clk 0:01:05]} 18. Qd3 {[%clk 0:02:36]}  c6 {[%clk 0:01:04]} 19. Rh3 {[%clk 0:02:33]}  Qe6 {[%clk 0:01:03]} 20. a4 {[%clk 0:02:19]}  a5 {[%clk 0:01:02]} 21. Be3 {[%clk 0:02:16]}  Bxe3 {[%clk 0:01:01]} 22. Qxe3 {[%clk 0:02:16]}  c5 {[%clk 0:01:01]} 23. Rb1 {[%clk 0:02:16]}  d4 {[%clk 0:01:01]} 24. Qe2 {[%clk 0:02:12]}  dxc3 {[%clk 0:00:59]} 25. Rxc3 {[%clk 0:02:13]}  Rd4 {[%clk 0:01:00]} 26. Rcb3 {[%clk 0:02:01]}  Rb4 {[%clk 0:00:49]} 27. Qd2 {[%clk 0:01:55]}  h6 {[%clk 0:00:41]} 28. h3 {[%clk 0:01:51]}  Rb8 {[%clk 0:00:40]} 29. Kh2 {[%clk 0:01:34]}  Rxa4 {[%clk 0:00:37]} 30. g3 {[%clk 0:01:04]}  Rb4 {[%clk 0:00:36]} 31. R3b2 {[%clk 0:00:48]}  Kh7 {[%clk 0:00:35]} 32. Rxb4 {[%clk 0:00:41]}  cxb4 {[%clk 0:00:34]} 33. Qd3 {[%clk 0:00:38]}  h5 {[%clk 0:00:31]} 34. g4 {[%clk 0:00:35]}  hxg4 {[%clk 0:00:31]} 35. hxg4 {[%clk 0:00:36]}  Qh6+ {[%clk 0:00:31]} 36. Kg2 {[%clk 0:00:31]}  Qxf4 {[%clk 0:00:18]} 37. Rh1+ {[%clk 0:00:30]}  Kg6 {[%clk 0:00:17]} 38. gxf5+ {[%clk 0:00:22]}  Qxf5 {[%clk 0:00:17]} 39. Qd6+ {[%clk 0:00:22]}  Kg5 {[%clk 0:00:17]} 40. Qe7+ {[%clk 0:00:19]}  Kg6 {[%clk 0:00:16]} 41. Qd6+ {[%clk 0:00:14]}  Kg5 {[%clk 0:00:16]} 42. Qxb8 {[%clk 0:00:13]}  Qg4+ {[%clk 0:00:16]} 43. Kf2 {[%clk 0:00:13]}  Qf4+ {[%clk 0:00:15]} 44. Kg2 {[%clk 0:00:10]}  Qe4+ {[%clk 0:00:15]} 45. Kh2 {[%clk 0:00:08]}  Qh4+ {[%clk 0:00:15]} 46. Kg2 {[%clk 0:00:08]}  Qe4+ {[%clk 0:00:13]} 47. Kg3 {[%clk 0:00:07]}  Qxh1 {[%clk 0:00:11]} 48. Qd8+ {[%clk 0:00:06]}  Kf5 {[%clk 0:00:11]} 49. Qd7+ {[%clk 0:00:05]}  Kxe5 {[%clk 0:00:11]} 50. Qxg7+ {[%clk 0:00:05]}  Kd6 {[%clk 0:00:11]} 51. Qf6+ {[%clk 0:00:05]}  Kc5 {[%clk 0:00:11]} 52. Qe5+ {[%clk 0:00:04]}  Qd5 {[%clk 0:00:11]} 53. Qc7+ {[%clk 0:00:04]}  Kb5 {[%clk 0:00:11]} 54. Kh3 {[%clk 0:00:02]}  Qf5+ {[%clk 0:00:11]} 55. Kg3 {[%clk 0:00:02]}  Qg6+ {[%clk 0:00:10]} 56. Kf2 {[%clk 0:00:02]}  Qc6 {[%clk 0:00:10]} 57. Qe5+ {[%clk 0:00:01]}  Qc5+ {[%clk 0:00:10]} 58. Qe3 {[%clk 0:00:02]}  Qxe3+ {[%clk 0:00:10]} 59. Kxe3 {[%clk 0:00:03]}  Kc4 {[%clk 0:00:11]} 60. Kd2 {[%clk 0:00:03]}  a4 {[%clk 0:00:11]} 61. Kc1 {[%clk 0:00:03]}  a3 {[%clk 0:00:11]} 62. Kb1 {[%clk 0:00:04]}  Kc3 {[%clk 0:00:12]} 63. Ka1 {[%clk 0:00:04]}  Kxc2 {[%clk 0:00:12]} 64. Ka2 {[%clk 0:00:04]}  b3+ {[%clk 0:00:12]} 65. Kxa3 {[%clk 0:00:03]}  b2 {[%clk 0:00:12]} 66. Ka4 {[%clk 0:00:00]}  b1=Q {[%clk 0:00:11]} 0-1


[Site "https://www.chess.com"]

[Event "Titled Tuesday Blitz June 13 Early 2023"]
[White "Perez, Maximiliano"]
[Black "Papayan, Oleg"]
[WhiteFideId "117234"]
[BlackFideId "4193911"]
[WhiteElo "2334"]
[BlackElo "2167"]
[Result "1-0"]
[Round "7"]
[TimeControl "180+2"]
[Date "2023.06.13"]
[WhiteClock "0:00:41"]
[BlackClock "0:00:00"]
[Board "100"]

1. e4 {[%clk 0:03:00]}  e5 {[%clk 0:02:58]} 2. Nf3 {[%clk 0:03:00]}  Nc6 {[%clk 0:02:58]} 3. Bc4 {[%clk 0:03:00]}  Nf6 {[%clk 0:02:59]} 4. d3 {[%clk 0:03:00]}  Bc5 {[%clk 0:02:59]} 5. O-O {[%clk 0:03:01]}  O-O {[%clk 0:02:59]} 6. h3 {[%clk 0:03:00]}  h6 {[%clk 0:02:58]} 7. Re1 {[%clk 0:02:59]}  d6 {[%clk 0:02:51]} 8. c3 {[%clk 0:02:59]}  Be6 {[%clk 0:02:46]} 9. Bxe6 {[%clk 0:02:52]}  fxe6 {[%clk 0:02:47]} 10. Nbd2 {[%clk 0:02:53]}  Qe8 {[%clk 0:02:21]} 11. Nf1 {[%clk 0:02:52]}  Nh5 {[%clk 0:02:13]} 12. d4 {[%clk 0:02:46]}  exd4 {[%clk 0:02:10]} 13. cxd4 {[%clk 0:02:46]}  Bb6 {[%clk 0:02:07]} 14. Be3 {[%clk 0:02:44]}  Nf4 {[%clk 0:02:01]} 15. d5 {[%clk 0:02:38]}  Ne5 {[%clk 0:01:27]} 16. Nxe5 {[%clk 0:02:35]}  dxe5 {[%clk 0:01:28]} 17. Bxb6 {[%clk 0:02:26]}  axb6 {[%clk 0:01:25]} 18. dxe6 {[%clk 0:02:03]}  Qxe6 {[%clk 0:01:17]} 19. a3 {[%clk 0:02:02]}  Qg6 {[%clk 0:01:10]} 20. Ng3 {[%clk 0:02:02]}  h5 {[%clk 0:01:09]} 21. h4 {[%clk 0:02:00]}  Qf6 {[%clk 0:00:57]} 22. Rc1 {[%clk 0:01:15]}  Rf7 {[%clk 0:00:45]} 23. Nf5 {[%clk 0:01:09]}  Rd8 {[%clk 0:00:23]} 24. Qf3 {[%clk 0:00:58]}  Nd3 {[%clk 0:00:11]} 25. Red1 {[%clk 0:00:47]}  Nxc1 {[%clk 0:00:11]} 26. Rxc1 {[%clk 0:00:46]}  Rfd7 {[%clk 0:00:02]} 27. Qxh5 {[%clk 0:00:42]}  Qf7 {[%clk 0:00:02]} 28. Qg5 {[%clk 0:00:41]}  Rd1+ {[%clk 0:00:02]} 29. Rxd1 {[%clk 0:00:40]}  Rxd1+ {[%clk 0:00:03]} 30. Kh2 {[%clk 0:00:41]}  c5 {[%clk 0:00:00]} 31. Nh6+ {[%clk 0:00:41]} 1-0


[Site "https://www.chess.com"]

[Event "Titled Tuesday Blitz June 13 Early 2023"]
[White "Estrada Nieto, Julian"]
[Black "Spata, German"]
[WhiteFideId "5101018"]
[BlackFideId "113026"]
[WhiteElo "2161"]
[BlackElo "2260"]
[Result "1-0"]
[Round "7"]
[TimeControl "180+2"]
[Date "2023.06.13"]
[WhiteClock "0:00:14"]
[BlackClock "0:00:00"]
[Board "102"]

1. e4 {[%clk 0:03:00]}  d6 {[%clk 0:02:56]} 2. d4 {[%clk 0:03:00]}  Nf6 {[%clk 0:02:56]} 3. Nc3 {[%clk 0:03:00]}  g6 {[%clk 0:02:56]} 4. Nf3 {[%clk 0:03:01]}  Bg7 {[%clk 0:02:56]} 5. Be2 {[%clk 0:03:01]}  O-O {[%clk 0:02:56]} 6. O-O {[%clk 0:03:02]}  a6 {[%clk 0:02:56]} 7. a4 {[%clk 0:03:01]}  b6 {[%clk 0:02:56]} 8. Re1 {[%clk 0:02:54]}  Bb7 {[%clk 0:02:55]} 9. e5 {[%clk 0:02:54]}  Nd5 {[%clk 0:02:48]} 10. Nxd5 {[%clk 0:02:47]}  Bxd5 {[%clk 0:02:48]} 11. Bf4 {[%clk 0:02:45]}  Nd7 {[%clk 0:02:44]} 12. Qd2 {[%clk 0:02:44]}  Rb8 {[%clk 0:02:13]} 13. Bh6 {[%clk 0:02:35]}  dxe5 {[%clk 0:02:07]} 14. Bxg7 {[%clk 0:02:29]}  Kxg7 {[%clk 0:02:06]} 15. Nxe5 {[%clk 0:02:23]}  Nxe5 {[%clk 0:02:02]} 16. dxe5 {[%clk 0:02:23]}  a5 {[%clk 0:01:50]} 17. Rad1 {[%clk 0:02:20]}  Be6 {[%clk 0:01:50]} 18. Qe3 {[%clk 0:02:02]}  Qc8 {[%clk 0:01:43]} 19. Rd4 {[%clk 0:02:02]}  Rd8 {[%clk 0:01:38]} 20. Red1 {[%clk 0:01:54]}  Rxd4 {[%clk 0:01:36]} 21. Rxd4 {[%clk 0:01:54]}  Qe8 {[%clk 0:01:33]} 22. Rh4 {[%clk 0:01:52]}  Qh8 {[%clk 0:01:19]} 23. Qh6+ {[%clk 0:01:50]}  Kg8 {[%clk 0:01:19]} 24. Qg5 {[%clk 0:01:27]}  Qg7 {[%clk 0:01:12]} 25. Rd4 {[%clk 0:01:16]}  Qf8 {[%clk 0:01:10]} 26. Qd2 {[%clk 0:01:14]}  Kg7 {[%clk 0:00:57]} 27. h4 {[%clk 0:01:12]}  h5 {[%clk 0:00:55]} 28. Qg5 {[%clk 0:01:09]}  Kh7 {[%clk 0:00:37]} 29. Bd3 {[%clk 0:01:04]}  Kg7 {[%clk 0:00:23]} 30. Be2 {[%clk 0:00:47]}  Rd8 {[%clk 0:00:23]} 31. Rxd8 {[%clk 0:00:37]}  Qxd8 {[%clk 0:00:24]} 32. Bxh5 {[%clk 0:00:34]}  Qd4 {[%clk 0:00:24]} 33. Bxg6 {[%clk 0:00:23]}  fxg6 {[%clk 0:00:20]} 34. Qxe7+ {[%clk 0:00:23]}  Bf7 {[%clk 0:00:14]} 35. e6 {[%clk 0:00:23]}  Qd1+ {[%clk 0:00:12]} 36. Kh2 {[%clk 0:00:23]}  Qxc2 {[%clk 0:00:05]} 37. Qxf7+ {[%clk 0:00:22]}  Kh6 {[%clk 0:00:05]} 38. Qf8+ {[%clk 0:00:17]}  Kh5 {[%clk 0:00:04]} 39. Qf4 {[%clk 0:00:16]}  Qc5 {[%clk 0:00:02]} 40. Qg5+ {[%clk 0:00:13]}  Qxg5 {[%clk 0:00:02]} 41. hxg5 {[%clk 0:00:14]}  Kxg5 {[%clk 0:00:00]} 42. e7 {[%clk 0:00:14]} 1-0


[Site "https://www.chess.com"]

[Event "Titled Tuesday Blitz June 13 Early 2023"]
[White "Vega Gutierrez, Sabrina"]
[Black "Portela Peleteiro, Alberto"]
[WhiteFideId "2219026"]
[BlackFideId "22276106"]
[WhiteElo "2209"]
[BlackElo "2353"]
[Result "0-1"]
[Round "7"]
[TimeControl "180+2"]
[Date "2023.06.13"]
[WhiteClock "0:00:00"]
[BlackClock "0:01:19"]
[Board "103"]

1. e4 {[%clk 0:03:00]}  c5 {[%clk 0:02:59]} 2. Nf3 {[%clk 0:03:01]}  Nc6 {[%clk 0:03:00]} 3. d4 {[%clk 0:03:01]}  cxd4 {[%clk 0:03:01]} 4. Nxd4 {[%clk 0:03:02]}  Nf6 {[%clk 0:03:01]} 5. Nc3 {[%clk 0:03:02]}  e5 {[%clk 0:03:02]} 6. Ndb5 {[%clk 0:03:02]}  d6 {[%clk 0:03:02]} 7. Bg5 {[%clk 0:03:03]}  a6 {[%clk 0:03:03]} 8. Na3 {[%clk 0:03:03]}  Be6 {[%clk 0:03:03]} 9. Nc4 {[%clk 0:02:53]}  Rc8 {[%clk 0:03:04]} 10. Ne3 {[%clk 0:02:46]}  Be7 {[%clk 0:03:04]} 11. Bxf6 {[%clk 0:02:18]}  Bxf6 {[%clk 0:03:04]} 12. Be2 {[%clk 0:02:11]}  O-O {[%clk 0:03:02]} 13. Ncd5 {[%clk 0:02:06]}  Bg5 {[%clk 0:03:02]} 14. c3 {[%clk 0:02:05]}  Bxe3 {[%clk 0:02:50]} 15. Nxe3 {[%clk 0:01:52]}  Ne7 {[%clk 0:02:50]} 16. O-O {[%clk 0:01:36]}  d5 {[%clk 0:02:47]} 17. exd5 {[%clk 0:01:36]}  Nxd5 {[%clk 0:02:48]} 18. Nxd5 {[%clk 0:01:26]}  Bxd5 {[%clk 0:02:49]} 19. Re1 {[%clk 0:01:14]}  Bc6 {[%clk 0:02:27]} 20. Bf3 {[%clk 0:01:08]}  Qxd1 {[%clk 0:02:26]} 21. Raxd1 {[%clk 0:01:07]}  Bxf3 {[%clk 0:02:23]} 22. gxf3 {[%clk 0:01:08]}  f6 {[%clk 0:02:23]} 23. f4 {[%clk 0:00:37]}  exf4 {[%clk 0:02:07]} 24. Re7 {[%clk 0:00:37]}  Rf7 {[%clk 0:02:07]} 25. Rxf7 {[%clk 0:00:36]}  Kxf7 {[%clk 0:02:07]} 26. Rd7+ {[%clk 0:00:36]}  Kg6 {[%clk 0:02:06]} 27. Rxb7 {[%clk 0:00:36]}  Rd8 {[%clk 0:02:04]} 28. Kg2 {[%clk 0:00:34]}  Rd3 {[%clk 0:01:55]} 29. c4 {[%clk 0:00:34]}  h5 {[%clk 0:01:52]} 30. h4 {[%clk 0:00:34]}  Rd4 {[%clk 0:01:40]} 31. c5 {[%clk 0:00:33]}  Rc4 {[%clk 0:01:39]} 32. b4 {[%clk 0:00:32]}  Kf5 {[%clk 0:01:39]} 33. Kf3 {[%clk 0:00:24]}  g5 {[%clk 0:01:36]} 34. hxg5 {[%clk 0:00:13]}  fxg5 {[%clk 0:01:37]} 35. Rb6 {[%clk 0:00:05]}  Rc2 {[%clk 0:01:23]} 36. a4 {[%clk 0:00:05]}  g4+ {[%clk 0:01:24]} 37. Kg2 {[%clk 0:00:04]}  h4 {[%clk 0:01:21]} 38. Rxa6 {[%clk 0:00:03]}  h3+ {[%clk 0:01:21]} 39. Kh2 {[%clk 0:00:02]}  Rxf2+ {[%clk 0:01:21]} 40. Kg1 {[%clk 0:00:02]}  Rb2 {[%clk 0:01:20]} 41. Ra8 {[%clk 0:00:00]}  g3 {[%clk 0:01:19]} 0-1


[Site "https://www.chess.com"]

[Event "Titled Tuesday Blitz June 13 Early 2023"]
[White "Shukhman, Anna"]
[Black "Goncalves, Davi Sulzbacher"]
[WhiteFideId "54180058"]
[BlackFideId "2154510"]
[WhiteElo "2235"]
[BlackElo "2182"]
[Result "1-0"]
[Round "7"]
[TimeControl "180+2"]
[Date "2023.06.13"]
[WhiteClock "0:00:32"]
[BlackClock "0:00:03"]
[Board "105"]

1. e4 {[%clk 0:03:00]}  c5 {[%clk 0:02:58]} 2. Nf3 {[%clk 0:03:00]}  d6 {[%clk 0:02:59]} 3. d4 {[%clk 0:03:00]}  cxd4 {[%clk 0:03:00]} 4. Nxd4 {[%clk 0:03:00]}  Nf6 {[%clk 0:03:00]} 5. Nc3 {[%clk 0:03:00]}  e6 {[%clk 0:02:59]} 6. g4 {[%clk 0:02:59]}  Be7 {[%clk 0:02:57]} 7. g5 {[%clk 0:02:59]}  Nfd7 {[%clk 0:02:57]} 8. Be3 {[%clk 0:02:59]}  Nc6 {[%clk 0:02:52]} 9. f4 {[%clk 0:02:57]}  h6 {[%clk 0:02:51]} 10. Bb5 {[%clk 0:02:34]}  hxg5 {[%clk 0:02:48]} 11. Bxc6 {[%clk 0:02:32]}  gxf4 {[%clk 0:02:18]} 12. Bxd7+ {[%clk 0:02:32]}  Bxd7 {[%clk 0:02:19]} 13. Bf2 {[%clk 0:02:32]}  Rc8 {[%clk 0:02:00]} 14. Qf3 {[%clk 0:02:15]}  Qa5 {[%clk 0:01:44]} 15. Nb3 {[%clk 0:01:57]}  Qb4 {[%clk 0:01:15]} 16. Qxf4 {[%clk 0:01:56]}  Bf6 {[%clk 0:00:59]} 17. O-O-O {[%clk 0:01:20]}  Bxc3 {[%clk 0:00:48]} 18. bxc3 {[%clk 0:01:18]}  Qxc3 {[%clk 0:00:46]} 19. Rd2 {[%clk 0:01:15]}  e5 {[%clk 0:00:34]} 20. Qg3 {[%clk 0:01:08]}  Qxg3 {[%clk 0:00:22]} 21. Bxg3 {[%clk 0:01:07]}  Ke7 {[%clk 0:00:20]} 22. Rf1 {[%clk 0:00:54]}  f6 {[%clk 0:00:19]} 23. Rfd1 {[%clk 0:00:42]}  Rc6 {[%clk 0:00:19]} 24. Na5 {[%clk 0:00:40]}  Rb6 {[%clk 0:00:19]} 25. Nc4 {[%clk 0:00:39]}  Rc6 {[%clk 0:00:17]} 26. Rxd6 {[%clk 0:00:37]}  Be6 {[%clk 0:00:15]} 27. Rxc6 {[%clk 0:00:34]}  bxc6 {[%clk 0:00:16]} 28. Na5 {[%clk 0:00:34]}  Rc8 {[%clk 0:00:12]} 29. Bf2 {[%clk 0:00:34]}  c5 {[%clk 0:00:11]} 30. Nb7 {[%clk 0:00:33]}  c4 {[%clk 0:00:08]} 31. Bc5+ {[%clk 0:00:32]}  Kf7 {[%clk 0:00:03]} 32. Nd6+ {[%clk 0:00:32]} 1-0


[Site "https://www.chess.com"]

[Event "Titled Tuesday Blitz June 13 Early 2023"]
[White "De La Villa Garcia, Jesus Maria"]
[Black "Shuvalov, Evgenij"]
[WhiteFideId "2200040"]
[BlackFideId "4187237"]
[WhiteElo "2422"]
[BlackElo "2080"]
[Result "1-0"]
[Round "7"]
[TimeControl "180+2"]
[Date "2023.06.13"]
[WhiteClock "0:00:07"]
[BlackClock "0:00:00"]
[Board "110"]

1. c4 {[%clk 0:03:00]}  Nf6 {[%clk 0:02:59]} 2. Nc3 {[%clk 0:03:00]}  g6 {[%clk 0:02:59]} 3. d4 {[%clk 0:03:00]}  d5 {[%clk 0:02:59]} 4. Nf3 {[%clk 0:02:55]}  Bg7 {[%clk 0:02:58]} 5. cxd5 {[%clk 0:02:54]}  Nxd5 {[%clk 0:02:58]} 6. Qb3 {[%clk 0:02:51]}  Nxc3 {[%clk 0:02:52]} 7. bxc3 {[%clk 0:02:50]}  c5 {[%clk 0:02:48]} 8. e4 {[%clk 0:02:33]}  cxd4 {[%clk 0:02:43]} 9. cxd4 {[%clk 0:02:31]}  Nc6 {[%clk 0:02:40]} 10. Bb2 {[%clk 0:02:30]}  O-O {[%clk 0:02:19]} 11. d5 {[%clk 0:02:19]}  Qa5+ {[%clk 0:02:16]} 12. Nd2 {[%clk 0:02:14]}  Nd4 {[%clk 0:02:11]} 13. Qd3 {[%clk 0:01:45]}  Nf3+ {[%clk 0:01:48]} 14. gxf3 {[%clk 0:01:32]}  Bxb2 {[%clk 0:01:49]} 15. Rb1 {[%clk 0:01:31]}  Bg7 {[%clk 0:01:35]} 16. Be2 {[%clk 0:01:31]}  Bh3 {[%clk 0:01:30]} 17. f4 {[%clk 0:01:30]}  Bc3 {[%clk 0:00:59]} 18. Rd1 {[%clk 0:00:59]}  Bd7 {[%clk 0:00:58]} 19. O-O {[%clk 0:00:58]}  Rfc8 {[%clk 0:00:42]} 20. Nc4 {[%clk 0:00:53]}  Qd8 {[%clk 0:00:26]} 21. Qxc3 {[%clk 0:00:50]}  b5 {[%clk 0:00:26]} 22. Qd4 {[%clk 0:00:46]}  bxc4 {[%clk 0:00:26]} 23. Bxc4 {[%clk 0:00:47]}  Qc7 {[%clk 0:00:20]} 24. Bb3 {[%clk 0:00:47]}  Qxf4 {[%clk 0:00:20]} 25. e5 {[%clk 0:00:42]}  Qg5+ {[%clk 0:00:18]} 26. Kh1 {[%clk 0:00:41]}  Bh3 {[%clk 0:00:17]} 27. Rg1 {[%clk 0:00:37]}  Qf5 {[%clk 0:00:17]} 28. Rg3 {[%clk 0:00:34]}  Rd8 {[%clk 0:00:14]} 29. d6 {[%clk 0:00:26]}  exd6 {[%clk 0:00:13]} 30. exd6 {[%clk 0:00:27]}  Rac8 {[%clk 0:00:12]} 31. Re1 {[%clk 0:00:21]}  Rc5 {[%clk 0:00:08]} 32. Rxh3 {[%clk 0:00:16]}  Qxh3 {[%clk 0:00:08]} 33. Qxc5 {[%clk 0:00:16]}  Qf3+ {[%clk 0:00:08]} 34. Kg1 {[%clk 0:00:15]}  Qg4+ {[%clk 0:00:08]} 35. Kf1 {[%clk 0:00:15]}  Qh3+ {[%clk 0:00:08]} 36. Ke2 {[%clk 0:00:11]}  Qxh2 {[%clk 0:00:00]} 37. Rd1 {[%clk 0:00:07]} 1-0


[Site "https://www.chess.com"]

[Event "Titled Tuesday Blitz June 13 Early 2023"]
[White "Omelja, Artem"]
[Black "Torres Hernandez, Leslie Carolin"]
[WhiteFideId "14119846"]
[BlackFideId "8400504"]
[WhiteElo "2404"]
[BlackElo "1920"]
[Result "0-1"]
[Round "7"]
[TimeControl "180+2"]
[Date "2023.06.13"]
[WhiteClock "0:00:00"]
[BlackClock "0:00:34"]
[Board "111"]

1. e4 {[%clk 0:03:00]}  e6 {[%clk 0:02:59]} 2. d3 {[%clk 0:03:00]}  d5 {[%clk 0:02:59]} 3. Nd2 {[%clk 0:03:00]}  Nc6 {[%clk 0:02:59]} 4. Ngf3 {[%clk 0:03:00]}  e5 {[%clk 0:02:58]} 5. c3 {[%clk 0:03:00]}  Nf6 {[%clk 0:02:57]} 6. a4 {[%clk 0:03:00]}  dxe4 {[%clk 0:02:57]} 7. dxe4 {[%clk 0:03:01]}  a5 {[%clk 0:02:55]} 8. Bc4 {[%clk 0:03:02]}  Bc5 {[%clk 0:02:54]} 9. Qe2 {[%clk 0:03:01]}  O-O {[%clk 0:02:54]} 10. O-O {[%clk 0:03:01]}  Qe7 {[%clk 0:02:54]} 11. Nb3 {[%clk 0:02:41]}  Bb6 {[%clk 0:02:51]} 12. Be3 {[%clk 0:02:37]}  Bxe3 {[%clk 0:02:38]} 13. Qxe3 {[%clk 0:02:38]}  b6 {[%clk 0:02:38]} 14. Bd5 {[%clk 0:02:34]}  Bb7 {[%clk 0:02:30]} 15. Rad1 {[%clk 0:02:29]}  Rad8 {[%clk 0:02:29]} 16. Rd2 {[%clk 0:02:05]}  Rd6 {[%clk 0:02:28]} 17. Rfd1 {[%clk 0:02:04]}  Nd8 {[%clk 0:02:22]} 18. Bxb7 {[%clk 0:01:56]}  Nxb7 {[%clk 0:02:22]} 19. Nh4 {[%clk 0:01:52]}  g6 {[%clk 0:02:22]} 20. Qg5 {[%clk 0:01:35]}  Qe6 {[%clk 0:02:22]} 21. Nf5 {[%clk 0:01:32]}  Nxe4 {[%clk 0:01:58]} 22. Rxd6 {[%clk 0:01:20]}  Nbxd6 {[%clk 0:01:44]} 23. Nh6+ {[%clk 0:00:26]}  Kg7 {[%clk 0:01:44]} 24. Qe3 {[%clk 0:00:25]}  Qxb3 {[%clk 0:01:42]} 25. Re1 {[%clk 0:00:26]}  Qxb2 {[%clk 0:01:27]} 26. f3 {[%clk 0:00:25]}  Qf2+ {[%clk 0:01:27]} 27. Qxf2 {[%clk 0:00:22]}  Nxf2 {[%clk 0:01:28]} 28. Kxf2 {[%clk 0:00:23]}  Kxh6 {[%clk 0:01:28]} 29. Rxe5 {[%clk 0:00:24]}  Re8 {[%clk 0:01:27]} 30. Rd5 {[%clk 0:00:24]}  Kg7 {[%clk 0:01:25]} 31. c4 {[%clk 0:00:24]}  Nxc4 {[%clk 0:01:21]} 32. Rd7 {[%clk 0:00:24]}  Rc8 {[%clk 0:01:17]} 33. g4 {[%clk 0:00:23]}  Kf6 {[%clk 0:01:16]} 34. g5+ {[%clk 0:00:21]}  Ke6 {[%clk 0:01:16]} 35. Rd4 {[%clk 0:00:21]}  Nd6 {[%clk 0:01:16]} 36. Rh4 {[%clk 0:00:21]}  Rh8 {[%clk 0:01:15]} 37. Rf4 {[%clk 0:00:17]}  c5 {[%clk 0:01:13]} 38. h4 {[%clk 0:00:16]}  c4 {[%clk 0:01:13]} 39. h5 {[%clk 0:00:16]}  gxh5 {[%clk 0:01:12]} 40. Rf6+ {[%clk 0:00:16]}  Ke5 {[%clk 0:01:12]} 41. Ke3 {[%clk 0:00:16]}  Nf5+ {[%clk 0:01:10]} 42. Kd2 {[%clk 0:00:17]}  Rd8+ {[%clk 0:01:09]} 43. Kc3 {[%clk 0:00:17]}  Ne3 {[%clk 0:01:06]} 44. Rxf7 {[%clk 0:00:14]}  Rd3+ {[%clk 0:01:06]} 45. Kb2 {[%clk 0:00:14]}  Rb3+ {[%clk 0:01:05]} 46. Kc1 {[%clk 0:00:14]}  c3 {[%clk 0:01:02]} 47. Re7+ {[%clk 0:00:09]}  Kf4 {[%clk 0:01:02]} 48. g6 {[%clk 0:00:09]}  hxg6 {[%clk 0:01:03]} 49. Re4+ {[%clk 0:00:09]}  Kxf3 {[%clk 0:01:03]} 50. Rf4+ {[%clk 0:00:08]}  Ke2 {[%clk 0:01:00]} 51. Rf2+ {[%clk 0:00:05]}  Kd3 {[%clk 0:01:00]} 52. Rf6 {[%clk 0:00:05]}  Ra3 {[%clk 0:00:51]} 53. Rd6+ {[%clk 0:00:05]}  Ke2 {[%clk 0:00:51]} 54. Kb1 {[%clk 0:00:04]}  c2+ {[%clk 0:00:51]} 55. Kb2 {[%clk 0:00:04]}  Ra2+ {[%clk 0:00:49]} 56. Kb3 {[%clk 0:00:02]}  c1=N+ {[%clk 0:00:33]} 57. Kc3 {[%clk 0:00:02]}  Rc2+ {[%clk 0:00:34]} 58. Kd4 {[%clk 0:00:00]}  Rd2+ {[%clk 0:00:34]} 0-1


[Site "https://www.chess.com"]